[Event "Titled Tuesday Blitz June 28 Late 2022"]
[White "Thiel, Thomas"]
[Black "Yurasova, Daria"]
[WhiteFideId "4615964"]
[BlackFideId "34146919"]
[WhiteElo "2222"]
[BlackElo "2021"]
[Result "0-1"]
[Round "03"]
[TimeControl "180+1"]
[Date "2022.06.29"]
[WhiteClock "0:01:49"]
[BlackClock "0:01:52"]

1. e4 {[%clk 0:03:00]}  e5 {[%clk 0:02:58]} 2. Nf3 {[%clk 0:02:59]}  Nc6 {[%clk 0:02:58]} 3. d4 {[%clk 0:02:58]}  exd4 {[%clk 0:02:58]} 4. Nxd4 {[%clk 0:02:59]}  Nf6 {[%clk 0:02:58]} 5. Nxc6 {[%clk 0:02:58]}  bxc6 {[%clk 0:02:58]} 6. e5 {[%clk 0:02:58]}  Nd5 {[%clk 0:02:58]} 7. c4 {[%clk 0:02:57]}  Nb6 {[%clk 0:02:58]} 8. Nc3 {[%clk 0:02:55]}  g6 {[%clk 0:02:58]} 9. f4 {[%clk 0:02:49]}  Bg7 {[%clk 0:02:54]} 10. Be2 {[%clk 0:02:48]}  O-O {[%clk 0:02:52]} 11. O-O {[%clk 0:02:47]}  d6 {[%clk 0:02:49]} 12. Bf3 {[%clk 0:02:45]}  dxe5 {[%clk 0:02:42]} 13. Bxc6 {[%clk 0:02:43]}  Rb8 {[%clk 0:02:26]} 14. Qe2 {[%clk 0:01:55]}  Be6 {[%clk 0:02:20]} 15. b3 {[%clk 0:01:52]}  Qd4+ {[%clk 0:01:52]} 16. Qe3 {[%clk 0:01:49]}  exf4 {[%clk 0:01:52]} 0-1


[Site "https://www.chess.com"]

[Event "Titled Tuesday Blitz June 28 Late 2022"]
[White "Voege, Tobias"]
[Black "Paravyan, David"]
[WhiteFideId "1270513"]
[BlackFideId "4194985"]
[WhiteElo "2379"]
[BlackElo "2569"]
[Result "1/2-1/2"]
[Round "03"]
[TimeControl "180+1"]
[Date "2022.06.28"]
[WhiteClock "0:00:05"]
[BlackClock "0:00:03"]

1. d4 {[%clk 0:03:00]}  Nf6 {[%clk 0:02:56]} 2. c4 {[%clk 0:03:01]}  g6 {[%clk 0:02:57]} 3. Nc3 {[%clk 0:03:01]}  d5 {[%clk 0:02:56]} 4. cxd5 {[%clk 0:02:59]}  Nxd5 {[%clk 0:02:57]} 5. e4 {[%clk 0:02:59]}  Nxc3 {[%clk 0:02:58]} 6. bxc3 {[%clk 0:03:00]}  Bg7 {[%clk 0:02:58]} 7. Bc4 {[%clk 0:03:00]}  c5 {[%clk 0:02:57]} 8. Ne2 {[%clk 0:03:00]}  Nc6 {[%clk 0:02:58]} 9. Be3 {[%clk 0:03:00]}  O-O {[%clk 0:02:58]} 10. O-O {[%clk 0:02:58]}  Bg4 {[%clk 0:02:59]} 11. f3 {[%clk 0:02:56]}  Na5 {[%clk 0:02:59]} 12. Bd3 {[%clk 0:02:56]}  cxd4 {[%clk 0:02:57]} 13. cxd4 {[%clk 0:02:57]}  Be6 {[%clk 0:02:58]} 14. d5 {[%clk 0:02:58]}  Bxa1 {[%clk 0:02:58]} 15. Qxa1 {[%clk 0:02:59]}  f6 {[%clk 0:02:58]} 16. Qb1 {[%clk 0:02:58]}  Bd7 {[%clk 0:02:56]} 17. e5 {[%clk 0:02:57]}  fxe5 {[%clk 0:02:46]} 18. Bxg6 {[%clk 0:02:57]}  Nc4 {[%clk 0:02:40]} 19. Bh6 {[%clk 0:02:44]}  Rf6 {[%clk 0:02:33]} 20. Bxh7+ {[%clk 0:02:44]}  Kh8 {[%clk 0:02:34]} 21. Bg5 {[%clk 0:02:44]}  Qb6+ {[%clk 0:02:16]} 22. Kh1 {[%clk 0:02:37]}  Ne3 {[%clk 0:01:45]} 23. Bxf6+ {[%clk 0:02:23]}  exf6 {[%clk 0:01:44]} 24. Re1 {[%clk 0:02:07]}  f5 {[%clk 0:01:43]} 25. Qxb6 {[%clk 0:01:50]}  axb6 {[%clk 0:01:44]} 26. Nc3 {[%clk 0:01:44]}  Nc4 {[%clk 0:01:18]} 27. Bg6 {[%clk 0:01:35]}  Kg7 {[%clk 0:01:18]} 28. Bh5 {[%clk 0:01:33]}  b5 {[%clk 0:01:16]} 29. Rb1 {[%clk 0:01:22]}  Nd2 {[%clk 0:00:55]} 30. Rb2 {[%clk 0:01:16]}  Rc8 {[%clk 0:00:54]} 31. Rxd2 {[%clk 0:01:11]}  Rxc3 {[%clk 0:00:53]} 32. Kg1 {[%clk 0:01:01]}  Kf6 {[%clk 0:00:50]} 33. h4 {[%clk 0:00:50]}  Rc8 {[%clk 0:00:48]} 34. g4 {[%clk 0:00:47]}  e4 {[%clk 0:00:39]} 35. gxf5 {[%clk 0:00:37]}  e3 {[%clk 0:00:36]} 36. Re2 {[%clk 0:00:32]}  Rc3 {[%clk 0:00:35]} 37. Bg4 {[%clk 0:00:24]}  Bxf5 {[%clk 0:00:34]} 38. Kg2 {[%clk 0:00:14]}  Bc2 {[%clk 0:00:26]} 39. d6 {[%clk 0:00:12]}  b4 {[%clk 0:00:21]} 40. d7 {[%clk 0:00:11]}  Ke7 {[%clk 0:00:22]} 41. Re1 {[%clk 0:00:10]}  Ba4 {[%clk 0:00:10]} 42. f4 {[%clk 0:00:11]}  Bxd7 {[%clk 0:00:08]} 43. Bxd7 {[%clk 0:00:10]}  Kxd7 {[%clk 0:00:09]} 44. Kf3 {[%clk 0:00:11]}  Ra3 {[%clk 0:00:09]} 45. Rxe3 {[%clk 0:00:10]}  Rxa2 {[%clk 0:00:09]} 46. h5 {[%clk 0:00:11]}  Rh2 {[%clk 0:00:06]} 47. Kg4 {[%clk 0:00:09]}  Kd6 {[%clk 0:00:06]} 48. f5 {[%clk 0:00:09]}  Rg2+ {[%clk 0:00:06]} 49. Kf4 {[%clk 0:00:09]}  Rf2+ {[%clk 0:00:05]} 50. Kg5 {[%clk 0:00:09]}  Rg2+ {[%clk 0:00:05]} 51. Kf6 {[%clk 0:00:09]}  Rh2 {[%clk 0:00:05]} 52. Kg6 {[%clk 0:00:10]}  Rg2+ {[%clk 0:00:06]} 53. Kf7 {[%clk 0:00:09]}  Rh2 {[%clk 0:00:06]} 54. Kg6 {[%clk 0:00:09]}  Rg2+ {[%clk 0:00:07]} 55. Kf6 {[%clk 0:00:09]}  Rh2 {[%clk 0:00:07]} 56. Rd3+ {[%clk 0:00:09]}  Kc5 {[%clk 0:00:07]} 57. Kg6 {[%clk 0:00:09]}  Kc4 {[%clk 0:00:06]} 58. Rd7 {[%clk 0:00:07]}  b5 {[%clk 0:00:06]} 59. Rc7+ {[%clk 0:00:07]}  Kd3 {[%clk 0:00:05]} 60. Rd7+ {[%clk 0:00:07]}  Kc3 {[%clk 0:00:05]} 61. Rc7+ {[%clk 0:00:07]}  Kd3 {[%clk 0:00:05]} 62. Rd7+ {[%clk 0:00:07]}  Ke4 {[%clk 0:00:04]} 63. Rb7 {[%clk 0:00:07]}  Rg2+ {[%clk 0:00:03]} 64. Kf6 {[%clk 0:00:07]}  Kd4 {[%clk 0:00:02]} 65. Rxb5 {[%clk 0:00:07]}  Kc3 {[%clk 0:00:01]} 66. Rc5+ {[%clk 0:00:07]}  Kd4 {[%clk 0:00:01]} 67. Rb5 {[%clk 0:00:06]}  Kc4 {[%clk 0:00:02]} 68. Rb7 {[%clk 0:00:06]}  Rh2 {[%clk 0:00:03]} 69. Kg6 {[%clk 0:00:06]}  Rg2+ {[%clk 0:00:03]} 70. Kf6 {[%clk 0:00:07]}  Rh2 {[%clk 0:00:04]} 71. Rc7+ {[%clk 0:00:07]}  Kd3 {[%clk 0:00:04]} 72. Rd7+ {[%clk 0:00:07]}  Kc3 {[%clk 0:00:04]} 73. Rc7+ {[%clk 0:00:07]}  Kd3 {[%clk 0:00:05]} 74. Ke6 {[%clk 0:00:08]}  Rxh5 {[%clk 0:00:04]} 75. f6 {[%clk 0:00:08]}  Rh6 {[%clk 0:00:04]} 76. Rb7 {[%clk 0:00:07]}  Kc3 {[%clk 0:00:04]} 77. Ke7 {[%clk 0:00:07]}  b3 {[%clk 0:00:04]} 78. f7 {[%clk 0:00:07]}  Rh7 {[%clk 0:00:05]} 79. Ke6 {[%clk 0:00:07]}  b2 {[%clk 0:00:03]} 80. Rxb2 {[%clk 0:00:06]}  Rxf7 {[%clk 0:00:03]} 81. Kxf7 {[%clk 0:00:05]}  Kxb2 {[%clk 0:00:03]} 1/2-1/2


[Site "https://www.chess.com"]

[Event "Titled Tuesday Blitz June 28 Late 2022"]
[White "Vovk, Orest"]
[Black "Bolourchifard, Farzad"]
[WhiteFideId "14113490"]
[BlackFideId "12510084"]
[WhiteElo "2203"]
[BlackElo "2317"]
[Result "0-1"]
[Round "03"]
[TimeControl "180+1"]
[Date "2022.06.29"]
[WhiteClock "0:00:03"]
[BlackClock "0:00:16"]

1. h4 {[%clk 0:03:00]}  d5 {[%clk 0:02:59]} 2. h5 {[%clk 0:03:01]}  Nf6 {[%clk 0:02:59]} 3. h6 {[%clk 0:03:01]}  g6 {[%clk 0:03:00]} 4. d3 {[%clk 0:03:00]}  b6 {[%clk 0:02:49]} 5. Nc3 {[%clk 0:03:00]}  Bb7 {[%clk 0:02:49]} 6. Nf3 {[%clk 0:02:59]}  c5 {[%clk 0:02:50]} 7. Bf4 {[%clk 0:02:58]}  e6 {[%clk 0:02:43]} 8. Nb5 {[%clk 0:02:57]}  Na6 {[%clk 0:02:41]} 9. Be5 {[%clk 0:02:53]}  Be7 {[%clk 0:02:40]} 10. Qd2 {[%clk 0:02:43]}  Bc6 {[%clk 0:02:38]} 11. a4 {[%clk 0:02:40]}  O-O {[%clk 0:02:19]} 12. Qf4 {[%clk 0:02:38]}  Nb4 {[%clk 0:02:01]} 13. Kd1 {[%clk 0:02:20]}  d4 {[%clk 0:01:54]} 14. e4 {[%clk 0:01:37]}  dxe3 {[%clk 0:01:51]} 15. Qxe3 {[%clk 0:01:28]}  Ng4 {[%clk 0:01:48]} 16. Qe2 {[%clk 0:01:15]}  Bxf3 {[%clk 0:01:45]} 17. gxf3 {[%clk 0:01:14]}  Nxe5 {[%clk 0:01:46]} 18. Qxe5 {[%clk 0:01:14]}  Bf6 {[%clk 0:01:46]} 19. Qf4 {[%clk 0:01:11]}  Bxb2 {[%clk 0:01:38]} 20. Rb1 {[%clk 0:01:11]}  Bh8 {[%clk 0:01:35]} 21. Be2 {[%clk 0:00:47]}  a6 {[%clk 0:01:30]} 22. Na3 {[%clk 0:00:46]}  Nd5 {[%clk 0:01:30]} 23. Qc1 {[%clk 0:00:42]}  Nc3+ {[%clk 0:01:29]} 24. Ke1 {[%clk 0:00:43]}  Nxb1 {[%clk 0:01:27]} 25. Qxb1 {[%clk 0:00:44]}  Rb8 {[%clk 0:01:22]} 26. Nc4 {[%clk 0:00:43]}  b5 {[%clk 0:01:22]} 27. axb5 {[%clk 0:00:43]}  axb5 {[%clk 0:01:23]} 28. Ne3 {[%clk 0:00:43]}  Qd4 {[%clk 0:01:20]} 29. Nd1 {[%clk 0:00:31]}  c4 {[%clk 0:00:36]} 30. c3 {[%clk 0:00:28]}  Qd6 {[%clk 0:00:31]} 31. d4 {[%clk 0:00:28]}  b4 {[%clk 0:00:31]} 32. cxb4 {[%clk 0:00:20]}  Qxb4+ {[%clk 0:00:28]} 33. Qxb4 {[%clk 0:00:19]}  Rxb4 {[%clk 0:00:29]} 34. Kf1 {[%clk 0:00:20]}  Bxd4 {[%clk 0:00:29]} 35. Rh4 {[%clk 0:00:19]}  e5 {[%clk 0:00:29]} 36. f4 {[%clk 0:00:19]}  f6 {[%clk 0:00:28]} 37. fxe5 {[%clk 0:00:17]}  fxe5 {[%clk 0:00:29]} 38. Kg2 {[%clk 0:00:17]}  c3 {[%clk 0:00:29]} 39. Bd3 {[%clk 0:00:10]}  Rb6 {[%clk 0:00:21]} 40. Ne3 {[%clk 0:00:10]}  Rb2 {[%clk 0:00:19]} 41. Bc4+ {[%clk 0:00:06]}  Kh8 {[%clk 0:00:18]} 42. Ng4 {[%clk 0:00:06]}  c2 {[%clk 0:00:16]} 43. Rh1 {[%clk 0:00:03]}  Rb1 {[%clk 0:00:16]} 0-1


[Site "https://www.chess.com"]

[Event "Titled Tuesday Blitz June 28 Late 2022"]
[White "Vusatiuk, Vladimir"]
[Black "Zhigalko, Sergei"]
[WhiteFideId "14118610"]
[BlackFideId "13502956"]
[WhiteElo "2157"]
[BlackElo "2662"]
[Result "0-1"]
[Round "03"]
[TimeControl "180+1"]
[Date "2022.06.28"]
[WhiteClock "0:00:04"]
[BlackClock "0:00:59"]

1. d4 {[%clk 0:03:00]}  Nf6 {[%clk 0:03:00]} 2. c4 {[%clk 0:03:00]}  e6 {[%clk 0:02:57]} 3. Nc3 {[%clk 0:03:00]}  Bb4 {[%clk 0:02:57]} 4. Qc2 {[%clk 0:03:01]}  O-O {[%clk 0:02:57]} 5. a3 {[%clk 0:03:01]}  Bxc3+ {[%clk 0:02:57]} 6. Qxc3 {[%clk 0:03:02]}  d6 {[%clk 0:02:58]} 7. Bg5 {[%clk 0:03:02]}  Nbd7 {[%clk 0:02:59]} 8. e3 {[%clk 0:02:58]}  b6 {[%clk 0:02:57]} 9. Nf3 {[%clk 0:02:51]}  Bb7 {[%clk 0:02:56]} 10. Be2 {[%clk 0:02:52]}  Qe8 {[%clk 0:02:51]} 11. Qd3 {[%clk 0:02:42]}  Ne4 {[%clk 0:02:50]} 12. Bh4 {[%clk 0:02:33]}  f5 {[%clk 0:02:50]} 13. O-O-O {[%clk 0:01:40]}  b5 {[%clk 0:02:39]} 14. cxb5 {[%clk 0:01:35]}  a6 {[%clk 0:02:40]} 15. Nd2 {[%clk 0:01:13]}  axb5 {[%clk 0:02:32]} 16. f3 {[%clk 0:01:11]}  Nef6 {[%clk 0:02:11]} 17. e4 {[%clk 0:00:43]}  fxe4 {[%clk 0:02:03]} 18. fxe4 {[%clk 0:00:44]}  b4 {[%clk 0:02:04]} 19. axb4 {[%clk 0:00:36]}  Nb6 {[%clk 0:01:58]} 20. b5 {[%clk 0:00:24]}  Qg6 {[%clk 0:01:38]} 21. Bf3 {[%clk 0:00:20]}  Nfd5 {[%clk 0:01:34]} 22. Nc4 {[%clk 0:00:15]}  Ra1+ {[%clk 0:01:17]} 23. Kd2 {[%clk 0:00:06]}  Qh6+ {[%clk 0:01:17]} 24. Ne3 {[%clk 0:00:03]}  Rxd1+ {[%clk 0:01:11]} 25. Kxd1 {[%clk 0:00:02]}  Nxe3+ {[%clk 0:01:12]} 26. Ke2 {[%clk 0:00:03]}  Nxg2 {[%clk 0:01:09]} 27. Bg3 {[%clk 0:00:01]}  Nf4+ {[%clk 0:01:09]} 28. Bxf4 {[%clk 0:00:02]}  Qxf4 {[%clk 0:01:09]} 29. Rg1 {[%clk 0:00:02]}  Qxh2+ {[%clk 0:01:07]} 30. Rg2 {[%clk 0:00:02]}  Qf4 {[%clk 0:01:08]} 31. d5 {[%clk 0:00:02]}  exd5 {[%clk 0:01:05]} 32. Qc3 {[%clk 0:00:02]}  d4 {[%clk 0:00:59]} 33. Qxd4 {[%clk 0:00:02]}  Qxf3+ {[%clk 0:00:59]} 34. Ke1 {[%clk 0:00:03]}  Qxg2 {[%clk 0:00:59]} 35. Qxg7+ {[%clk 0:00:04]}  Kxg7 {[%clk 0:00:59]} 0-1


[Site "https://www.chess.com"]

[Event "Titled Tuesday Blitz June 28 Late 2022"]
[White "Wang, Isaac"]
[Black "Yedidia, Daniel"]
[WhiteFideId "30977185"]
[BlackFideId "30905907"]
[WhiteElo "2308"]
[BlackElo "2577"]
[Result "1-0"]
[Round "03"]
[TimeControl "180+1"]
[Date "2022.06.29"]
[WhiteClock "0:00:12"]
[BlackClock "0:00:06"]

1. d4 {[%clk 0:03:00]}  Nf6 {[%clk 0:02:59]} 2. c4 {[%clk 0:03:00]}  e6 {[%clk 0:02:59]} 3. Nc3 {[%clk 0:02:58]}  Bb4 {[%clk 0:02:59]} 4. f3 {[%clk 0:02:58]}  c5 {[%clk 0:02:59]} 5. d5 {[%clk 0:02:58]}  b5 {[%clk 0:02:59]} 6. e4 {[%clk 0:02:55]}  exd5 {[%clk 0:02:56]} 7. cxd5 {[%clk 0:02:54]}  d6 {[%clk 0:02:52]} 8. Bxb5+ {[%clk 0:02:52]}  Bd7 {[%clk 0:02:52]} 9. Bxd7+ {[%clk 0:02:53]}  Nbxd7 {[%clk 0:02:53]} 10. Ne2 {[%clk 0:02:53]}  c4 {[%clk 0:02:50]} 11. O-O {[%clk 0:02:52]}  O-O {[%clk 0:02:44]} 12. Be3 {[%clk 0:02:49]}  Nc5 {[%clk 0:02:35]} 13. Nd4 {[%clk 0:02:38]}  Nd3 {[%clk 0:02:31]} 14. Nc6 {[%clk 0:02:23]}  Qd7 {[%clk 0:02:16]} 15. Qc2 {[%clk 0:02:15]}  Rfc8 {[%clk 0:01:40]} 16. Bd4 {[%clk 0:01:41]}  Bc5 {[%clk 0:01:36]} 17. Bxc5 {[%clk 0:01:39]}  Nxc5 {[%clk 0:01:34]} 18. Ne2 {[%clk 0:01:36]}  Qc7 {[%clk 0:01:14]} 19. Qxc4 {[%clk 0:01:29]}  Re8 {[%clk 0:01:11]} 20. b4 {[%clk 0:01:21]}  Na4 {[%clk 0:01:03]} 21. Qd4 {[%clk 0:01:13]}  Nb6 {[%clk 0:01:02]} 22. Ng3 {[%clk 0:01:08]}  Nfd7 {[%clk 0:00:50]} 23. Rac1 {[%clk 0:00:57]}  Qb7 {[%clk 0:00:43]} 24. Nf5 {[%clk 0:00:56]}  f6 {[%clk 0:00:33]} 25. Nxd6 {[%clk 0:00:52]}  Qa6 {[%clk 0:00:32]} 26. Nxe8 {[%clk 0:00:49]}  Rxe8 {[%clk 0:00:33]} 27. Rc2 {[%clk 0:00:40]}  Qa4 {[%clk 0:00:27]} 28. Rfc1 {[%clk 0:00:37]}  h5 {[%clk 0:00:27]} 29. f4 {[%clk 0:00:30]}  Qb5 {[%clk 0:00:26]} 30. Rd2 {[%clk 0:00:24]}  h4 {[%clk 0:00:14]} 31. e5 {[%clk 0:00:23]}  h3 {[%clk 0:00:14]} 32. e6 {[%clk 0:00:21]}  Nf8 {[%clk 0:00:15]} 33. Qc5 {[%clk 0:00:16]}  Qa4 {[%clk 0:00:09]} 34. Ne7+ {[%clk 0:00:13]}  Kh8 {[%clk 0:00:07]} 35. d6 {[%clk 0:00:13]}  hxg2 {[%clk 0:00:04]} 36. Qh5+ {[%clk 0:00:12]}  Nh7 {[%clk 0:00:05]} 37. Qxe8+ {[%clk 0:00:12]}  Nf8 {[%clk 0:00:05]} 38. Ng6+ {[%clk 0:00:11]}  Kh7 {[%clk 0:00:06]} 39. Nxf8+ {[%clk 0:00:12]}  Kh6 {[%clk 0:00:06]} 40. Qg6# {[%clk 0:00:12]} 1-0


[Site "https://www.chess.com"]

[Event "Titled Tuesday Blitz June 28 Late 2022"]
[White "Ward, Ieuan C"]
[Black "Vlassov, Nikolai"]
[WhiteFideId "406627"]
[BlackFideId "4103360"]
[WhiteElo "2344"]
[BlackElo "2407"]
[Result "1/2-1/2"]
[Round "03"]
[TimeControl "180+1"]
[Date "2022.06.29"]
[WhiteClock "0:00:07"]
[BlackClock "0:00:09"]

1. d4 {[%clk 0:03:00]}  Nf6 {[%clk 0:02:58]} 2. c4 {[%clk 0:03:01]}  Nc6 {[%clk 0:02:50]} 3. Nf3 {[%clk 0:02:59]}  e6 {[%clk 0:02:47]} 4. Nc3 {[%clk 0:02:56]}  Bb4 {[%clk 0:02:45]} 5. Bg5 {[%clk 0:02:53]}  h6 {[%clk 0:02:44]} 6. Bxf6 {[%clk 0:02:53]}  Bxc3+ {[%clk 0:02:43]} 7. bxc3 {[%clk 0:02:53]}  Qxf6 {[%clk 0:02:44]} 8. e3 {[%clk 0:02:52]}  d6 {[%clk 0:02:42]} 9. Bd3 {[%clk 0:02:52]}  e5 {[%clk 0:02:41]} 10. O-O {[%clk 0:02:33]}  Bg4 {[%clk 0:02:40]} 11. h3 {[%clk 0:02:33]}  Bxf3 {[%clk 0:02:38]} 12. Qxf3 {[%clk 0:02:34]}  Qxf3 {[%clk 0:02:38]} 13. gxf3 {[%clk 0:02:35]}  O-O-O {[%clk 0:02:36]} 14. Rab1 {[%clk 0:02:30]}  Na5 {[%clk 0:02:34]} 15. Rb5 {[%clk 0:02:25]}  b6 {[%clk 0:02:31]} 16. Bf5+ {[%clk 0:02:18]}  Kb8 {[%clk 0:02:30]} 17. c5 {[%clk 0:02:12]}  dxc5 {[%clk 0:02:25]} 18. dxc5 {[%clk 0:02:12]}  Rd5 {[%clk 0:02:21]} 19. Rfb1 {[%clk 0:02:08]}  Rhd8 {[%clk 0:02:19]} 20. cxb6 {[%clk 0:01:57]}  axb6 {[%clk 0:02:13]} 21. Kg2 {[%clk 0:01:49]}  Rxb5 {[%clk 0:02:08]} 22. Rxb5 {[%clk 0:01:48]}  f6 {[%clk 0:02:08]} 23. Rb4 {[%clk 0:01:39]}  Rd2 {[%clk 0:01:51]} 24. a4 {[%clk 0:01:35]}  Nc6 {[%clk 0:01:43]} 25. Rc4 {[%clk 0:01:25]}  Ne7 {[%clk 0:01:40]} 26. Be4 {[%clk 0:01:22]}  f5 {[%clk 0:01:36]} 27. Bc6 {[%clk 0:01:17]}  Rd6 {[%clk 0:01:06]} 28. Be8 {[%clk 0:01:08]}  Kb7 {[%clk 0:01:00]} 29. f4 {[%clk 0:01:03]}  e4 {[%clk 0:00:48]} 30. Rd4 {[%clk 0:00:56]}  Rxd4 {[%clk 0:00:47]} 31. cxd4 {[%clk 0:00:52]}  c6 {[%clk 0:00:47]} 32. f3 {[%clk 0:00:51]}  exf3+ {[%clk 0:00:43]} 33. Kxf3 {[%clk 0:00:51]}  Nd5 {[%clk 0:00:15]} 34. Bg6 {[%clk 0:00:46]}  Ne7 {[%clk 0:00:09]} 35. Be8 {[%clk 0:00:47]}  Kc7 {[%clk 0:00:09]} 36. e4 {[%clk 0:00:46]}  fxe4+ {[%clk 0:00:09]} 37. Kxe4 {[%clk 0:00:47]}  Kd6 {[%clk 0:00:09]} 38. f5 {[%clk 0:00:37]}  Nd5 {[%clk 0:00:09]} 39. Kd3 {[%clk 0:00:25]}  Nf4+ {[%clk 0:00:09]} 40. Ke4 {[%clk 0:00:23]}  Nxh3 {[%clk 0:00:10]} 41. f6 {[%clk 0:00:20]}  Ng5+ {[%clk 0:00:10]} 42. Kf5 {[%clk 0:00:21]}  gxf6 {[%clk 0:00:11]} 43. Kxf6 {[%clk 0:00:20]}  Nf3 {[%clk 0:00:11]} 44. Kg6 {[%clk 0:00:17]}  Nxd4 {[%clk 0:00:11]} 45. Kxh6 {[%clk 0:00:18]}  Ne6 {[%clk 0:00:11]} 46. Kg6 {[%clk 0:00:15]}  Nc5 {[%clk 0:00:10]} 47. a5 {[%clk 0:00:13]}  bxa5 {[%clk 0:00:10]} 48. Kf5 {[%clk 0:00:14]}  Kd5 {[%clk 0:00:09]} 49. Kf4 {[%clk 0:00:12]}  a4 {[%clk 0:00:09]} 50. Ke3 {[%clk 0:00:12]}  Kc4 {[%clk 0:00:09]} 51. Kd2 {[%clk 0:00:12]}  Ne4+ {[%clk 0:00:07]} 52. Kc2 {[%clk 0:00:11]}  Kb5 {[%clk 0:00:07]} 53. Kd3 {[%clk 0:00:10]}  Nf6 {[%clk 0:00:08]} 54. Bf7 {[%clk 0:00:10]}  Kb4 {[%clk 0:00:08]} 55. Kc2 {[%clk 0:00:08]}  c5 {[%clk 0:00:08]} 56. Kb2 {[%clk 0:00:06]}  c4 {[%clk 0:00:08]} 57. Kc2 {[%clk 0:00:05]}  a3 {[%clk 0:00:08]} 58. Kb1 {[%clk 0:00:05]}  Ne4 {[%clk 0:00:08]} 59. Be6 {[%clk 0:00:03]}  Nd2+ {[%clk 0:00:08]} 60. Ka1 {[%clk 0:00:03]}  Kc3 {[%clk 0:00:07]} 61. Ka2 {[%clk 0:00:04]}  Kb4 {[%clk 0:00:07]} 62. Bf7 {[%clk 0:00:04]}  Ne4 {[%clk 0:00:07]} 63. Bxc4 {[%clk 0:00:03]}  Nc3+ {[%clk 0:00:06]} 64. Ka1 {[%clk 0:00:02]}  Na4 {[%clk 0:00:06]} 65. Ba2 {[%clk 0:00:01]}  Nc3 {[%clk 0:00:05]} 66. Bg8 {[%clk 0:00:02]}  Ne2 {[%clk 0:00:05]} 67. Bf7 {[%clk 0:00:03]}  Nd4 {[%clk 0:00:05]} 68. Bg8 {[%clk 0:00:03]}  Nc6 {[%clk 0:00:04]} 69. Bf7 {[%clk 0:00:04]}  Kc3 {[%clk 0:00:04]} 70. Bg8 {[%clk 0:00:04]}  Nb4 {[%clk 0:00:04]} 71. Bf7 {[%clk 0:00:04]}  Kc2 {[%clk 0:00:04]} 72. Bg6+ {[%clk 0:00:04]}  Kc1 {[%clk 0:00:04]} 73. Bf7 {[%clk 0:00:04]}  Kd2 {[%clk 0:00:05]} 74. Bg6 {[%clk 0:00:04]}  Kc3 {[%clk 0:00:05]} 75. Bh7 {[%clk 0:00:04]}  Kc4 {[%clk 0:00:05]} 76. Bg8+ {[%clk 0:00:04]}  Kb5 {[%clk 0:00:06]} 77. Bf7 {[%clk 0:00:04]}  Kc6 {[%clk 0:00:06]} 78. Bg8 {[%clk 0:00:05]}  Kd7 {[%clk 0:00:06]} 79. Bf7 {[%clk 0:00:06]}  Ke7 {[%clk 0:00:07]} 80. Bb3 {[%clk 0:00:06]}  Kd6 {[%clk 0:00:07]} 81. Bg8 {[%clk 0:00:06]}  Ke7 {[%clk 0:00:07]} 82. Bc4 {[%clk 0:00:07]}  Kf6 {[%clk 0:00:07]} 83. Bg8 {[%clk 0:00:07]}  Kg7 {[%clk 0:00:07]} 84. Bc4 {[%clk 0:00:07]}  Kh7 {[%clk 0:00:07]} 85. Be6 {[%clk 0:00:06]}  Kg6 {[%clk 0:00:08]} 86. Bb3 {[%clk 0:00:06]}  Kf5 {[%clk 0:00:07]} 87. Bg8 {[%clk 0:00:06]}  Ke4 {[%clk 0:00:08]} 88. Bh7+ {[%clk 0:00:07]}  Kd4 {[%clk 0:00:08]} 89. Bg8 {[%clk 0:00:07]}  Kc3 {[%clk 0:00:08]} 90. Bf7 {[%clk 0:00:07]}  Nc2+ {[%clk 0:00:08]} 91. Ka2 {[%clk 0:00:08]}  Kb4 {[%clk 0:00:09]} 92. Bg6 {[%clk 0:00:07]}  Nd4 {[%clk 0:00:09]} 93. Bf7 {[%clk 0:00:06]}  Nb5 {[%clk 0:00:09]} 94. Bg8 {[%clk 0:00:06]}  Nc3+ {[%clk 0:00:09]} 95. Ka1 {[%clk 0:00:06]}  Ne4 {[%clk 0:00:10]} 96. Bf7 {[%clk 0:00:06]}  Nf6 {[%clk 0:00:10]} 97. Be6 {[%clk 0:00:06]}  Ne4 {[%clk 0:00:10]} 98. Bg8 {[%clk 0:00:06]}  Nd6 {[%clk 0:00:10]} 99. Be6 {[%clk 0:00:06]}  Nb5 {[%clk 0:00:10]} 100. Bg8 {[%clk 0:00:06]}  Nd4 {[%clk 0:00:10]} 101. Bf7 {[%clk 0:00:06]}  Nc2+ {[%clk 0:00:09]} 102. Ka2 {[%clk 0:00:06]}  Ne3 {[%clk 0:00:08]} 103. Bg8 {[%clk 0:00:07]}  Nd1 {[%clk 0:00:07]} 104. Bf7 {[%clk 0:00:06]}  Nc3+ {[%clk 0:00:07]} 105. Ka1 {[%clk 0:00:07]}  Ne4 {[%clk 0:00:07]} 106. Bg8 {[%clk 0:00:07]}  Ng5 {[%clk 0:00:08]} 107. Bd5 {[%clk 0:00:07]}  Kc5 {[%clk 0:00:08]} 108. Bg8 {[%clk 0:00:07]}  Kb4 {[%clk 0:00:08]} 109. Bd5 {[%clk 0:00:07]}  Nh7 {[%clk 0:00:08]} 110. Bg8 {[%clk 0:00:07]}  Nf6 {[%clk 0:00:09]} 111. Bf7 {[%clk 0:00:07]}  Nd7 {[%clk 0:00:09]} 112. Bg8 {[%clk 0:00:08]}  Ne5 {[%clk 0:00:09]} 113. Be6 {[%clk 0:00:07]} 1/2-1/2


[Site "https://www.chess.com"]